bitfinex-derivatives/quotes_BTCF0:USTF0_20240917
["timestamp","ask_amount","ask_price","bid_price","bid_amount"]
[1726592974051,0.3608,60896.0,60884.0,0.3608]
[1726592974362,0.3608,60896.0,60886.0,0.28]
[1726592974555,0.082094,60891.0,60885.0,0.3608]
[1726592974756,1.5,60894.0,60887.0,0.082098]
[1726592975059,1.5,60894.0,60889.0,0.082094]
[1726592975262,1.5,60894.0,60892.0,0.082091]
[1726592975457,1.5,60894.0,60890.0,0.082094]
[1726592976257,1.5,60894.0,60887.0,0.28]
[1726592976658,1.582089,60894.0,60889.0,0.082095]
[1726592976866,1.582089,60894.0,60887.0,0.00840425]
[1726592977168,0.082093,60892.0,60886.0,0.0821]
[1726592977372,0.082093,60892.0,60890.0,0.001]
[1726592977861,0.082093,60891.0,60890.0,0.001]
[1726592978063,0.082091,60893.0,60890.0,0.001]
[1726592978661,0.082092,60892.0,60890.0,0.001]
[1726592978867,0.082092,60892.0,60887.0,0.369098]
[1726592979070,0.082093,60891.0,60887.0,0.373098]
[1726592979268,1.501,60894.0,60887.0,0.011]
[1726592979460,0.164194,60888.0,60887.0,0.004]
[1726592979762,0.00246359,60895.0,60890.0,0.001]
[1726592979963,0.082093,60891.0,60890.0,0.001]
[1726592980165,1.582093,60891.0,60890.0,0.001]
[1726592980555,0.082097,60888.0,60887.0,0.004]
[1726592980964,0.083097,60888.0,60887.0,0.011]
[1726592981160,0.082109,60879.0,60878.0,0.00246382]
[1726592981361,0.442909,60879.0,60878.0,0.00246382]
[1726592981764,2.025018,60879.0,60878.0,0.01121364]
[1726592981966,2.215018,60879.0,60878.0,0.00246382]
[1726592982773,2.215018,60879.0,60878.0,0.01113357]
[1726592982965,2.216018,60879.0,60878.0,0.02646382]
[1726592983267,3.308818,60879.0,60878.0,0.02646382]
[1726592983468,3.307818,60879.0,60878.0,0.01446382]
[1726592983771,0.082128,60866.0,60865.0,0.082128]
[1726592984074,0.00246434,60873.0,60862.0,0.19]
[1726592984271,0.00246434,60873.0,60868.0,0.082122]
[1726592984474,0.082131,60863.0,60861.0,0.01096263]
[1726592984666,1.5,60869.0,60861.0,0.00246423]
[1726592984667,0.082132,60862.0,60861.0,0.00246423]
[1726592984984,0.082132,60862.0,60861.0,0.08459723]
[1726592985275,0.082132,60862.0,60861.0,0.00246423]
[1726592985465,0.082132,60862.0,60861.0,0.01094627]
[1726592985661,0.082132,60862.0,60861.0,0.00246423]
[1726592985876,0.164264,60862.0,60861.0,0.00246423]
[1726592986674,0.165264,60862.0,60861.0,0.00446423]
[1726592987074,0.166264,60862.0,60861.0,0.01846423]
[1726592987567,0.166264,60862.0,60861.0,0.016]
[1726592988478,0.166264,60862.0,60861.0,0.02443825]
[1726592990077,0.084132,60862.0,60861.0,0.02443825]
[1726592990773,1.584132,60862.0,60861.0,0.02443825]
[1726592992074,1.666264,60862.0,60861.0,0.02443825]
[1726592992271,1.584132,60862.0,60861.0,0.02443825]
[1726592994979,1.666264,60862.0,60861.0,0.02443825]
[1726592995177,1.748396,60862.0,60861.0,0.02443825]
[1726592995584,1.666264,60862.0,60861.0,0.02443825]
[1726592996985,2.841316,60862.0,60861.0,0.02443825]
[1726592997175,1.666264,60862.0,60861.0,0.02443825]
[1726592999079,1.748396,60862.0,60861.0,0.02443825]
[1726592999269,1.666264,60862.0,60861.0,0.02443825]
[1726592999680,1.748396,60862.0,60861.0,0.02443825]
[1726592999877,1.666264,60862.0,60861.0,0.02443825]
[1726593000180,1.748396,60862.0,60861.0,0.02443825]
[1726593000385,2.241316,60862.0,60861.0,0.02443825]
[1726593000582,1.748396,60862.0,60861.0,0.02443825]
[1726593000782,1.666264,60862.0,60861.0,0.02443825]
[1726593001180,1.748396,60862.0,60861.0,0.02443825]
[1726593001684,1.666264,60862.0,60861.0,0.02443825]
[1726593004786,1.584132,60862.0,60861.0,0.10657125]
[1726593004972,1.502,60862.0,60861.0,0.10657125]
[1726593005378,0.002,60862.0,60861.0,0.59949125]
[1726593005675,0.002,60862.0,60861.0,0.10657125]
[1726593005869,0.002,60862.0,60861.0,0.46737125]
[1726593005870,1.502,60862.0,60861.0,0.46737125]
[1726593006076,0.00246509,60866.0,60865.0,0.082128]
[1726593006276,0.082116,60874.0,60865.0,0.19]
[1726593006476,0.3608,60875.0,60873.0,0.19]
[1726593006675,0.3608,60875.0,60874.0,0.082116]
[1726593008084,0.443914,60875.0,60874.0,0.002]
[1726593008983,0.3618,60875.0,60874.0,0.01442409]
[1726593009180,0.001,60875.0,60874.0,0.006]
[1726593009889,1.501,60875.0,60874.0,0.006]
[1726593010585,1.501,60875.0,60874.0,0.0023]
[1726593011190,1.501,60875.0,60874.0,0.084416]
[1726593011889,1.583114,60875.0,60874.0,0.0023]
[1726593012084,1.943914,60875.0,60874.0,0.0023]
[1726593012384,1.8618,60875.0,60874.0,0.084416]
[1726593012685,1.8618,60875.0,60874.0,0.0023]
[1726593013184,1.8618,60875.0,60874.0,0.084416]
[1726593013388,1.8618,60875.0,60874.0,0.0023]
[1726593013583,2.026028,60875.0,60874.0,0.0023]
[1726593014191,2.600942,60875.0,60874.0,0.0023]
[1726593014489,3.200942,60875.0,60874.0,0.0023]
[1726593014985,2.108142,60875.0,60874.0,0.0023]
[1726593015183,2.600942,60875.0,60874.0,0.0023]
[1726593015587,3.200942,60875.0,60874.0,0.0023]
[1726593016289,2.026028,60875.0,60874.0,0.0023]
[1726593016483,1.943914,60875.0,60874.0,0.0023]
[1726593016896,1.8618,60875.0,60874.0,0.084416]
[1726593017194,1.8618,60875.0,60874.0,1.368616]
[1726593017391,0.00246407,60877.0,60876.0,0.082113]
[1726593017692,0.00246407,60877.0,60874.0,1.368616]
[1726593017693,0.3608,60887.0,60875.0,0.4928]
[1726593017895,0.3608,60887.0,60886.0,0.2721]
[1726593018392,0.3608,60895.0,60891.0,0.082092]
[1726593018579,0.3608,60895.0,60894.0,0.19]
[1726593018983,0.3608,60895.0,60890.0,0.19]
[1726593019586,0.3608,60895.0,60887.0,0.00856816]
[1726593019790,0.3608,60895.0,60886.0,0.3648]
[1726593020095,0.3608,60895.0,60886.0,0.55944827]
[1726593020289,0.3608,60895.0,60890.0,0.19]
[1726593020796,0.445889,60895.0,60890.0,0.19]
[1726593021193,0.442889,60895.0,60890.0,0.19]
[1726593021493,0.443889,60895.0,60890.0,0.272094]
[1726593021698,0.3618,60895.0,60894.0,0.19]
[1726593021899,0.3608,60895.0,60894.0,0.19]
[1726593022794,0.3618,60895.0,60891.0,0.270792]
[1726593022990,0.443888,60895.0,60891.0,0.1887]
[1726593023393,0.442888,60895.0,60891.0,0.1887]
[1726593023595,0.444888,60895.0,60894.0,0.009]
[1726593024194,0.082089,60894.0,60874.0,0.28]
[1726593024395,0.082106,60881.0,60872.0,0.082118]
[1726593024707,0.082106,60881.0,60880.0,0.01086032]
[1726593024994,0.082106,60881.0,60868.0,0.28]
[1726593024995,1.5,60881.0,60868.0,0.28]
[1726593025195,1.5,60881.0,60871.0,0.082119]
[1726593025495,1.5,60881.0,60880.0,0.014]
[1726593025999,1.664212,60881.0,60880.0,0.014]
[1726593027097,1.665212,60881.0,60880.0,0.00879943]
[1726593027301,1.665212,60881.0,60880.0,0.003]
[1726593027594,1.664212,60881.0,60880.0,0.003]
[1726593027789,1.667212,60881.0,60880.0,0.003]
[1726593028200,1.664212,60881.0,60880.0,0.003]
[1726593028585,1.664212,60881.0,60870.0,0.00863751]
[1726593028586,0.08212,60871.0,60870.0,0.00863751]
[1726593028790,0.08212,60871.0,60869.0,0.00246406]
[1726593028791,0.082121,60870.0,60869.0,0.00246406]
[1726593029191,1.582121,60870.0,60869.0,0.49530406]
[1726593029796,1.8608,60870.0,60869.0,0.00867541]
[1726593029995,0.08213,60864.0,60854.0,0.3271]
[1726593030199,0.082137,60858.0,60857.0,0.0110583]
[1726593030396,0.082137,60858.0,60841.0,0.172]
[1726593030397,0.082159,60842.0,60841.0,0.172]
[1726593030704,0.6408,60842.0,60836.0,0.00228]
[1726593030894,0.6408,60842.0,60832.0,0.00246575]
[1726593030895,0.082166,60837.0,60832.0,0.00246575]
[1726593031403,1.5,60841.0,60832.0,0.00246575]
[1726593031592,0.082171,60833.0,60832.0,0.00246575]
[1726593032306,1.582171,60833.0,60832.0,0.00246575]
[1726593032501,1.5,60833.0,60832.0,0.08463875]
[1726593032701,1.501,60833.0,60832.0,0.08463875]
[1726593033005,1.501,60833.0,60832.0,0.00246575]
[1726593034008,1.583171,60833.0,60832.0,0.00246575]
[1726593034205,1.584171,60833.0,60832.0,0.00246575]
[1726593035002,1.502,60833.0,60832.0,0.00246575]
[1726593036807,1.502,60833.0,60832.0,0.08463875]
[1726593036999,1.502,60833.0,60832.0,0.68463875]
[1726593037303,1.502,60833.0,60832.0,0.57779875]
[1726593037304,0.002,60833.0,60832.0,0.57779875]
[1726593038196,0.002,60833.0,60832.0,0.93859875]
[1726593038393,1.5,60838.0,60837.0,0.082166]
[1726593038598,0.36326576,60845.0,60842.0,0.082158]
[1726593038800,0.44542176,60845.0,60837.0,0.082165]
[1726593039018,0.44542176,60845.0,60832.0,0.00246575]
[1726593039019,0.082171,60833.0,60832.0,0.00486575]
[1726593039205,0.082171,60833.0,60808.0,0.54128]
[1726593039206,2.1408,60833.0,60805.0,0.082208]
[1726593039407,2.1408,60833.0,60806.0,0.28]
[1726593039408,0.3608,60819.0,60806.0,0.28]
[1726593039597,0.3608,60819.0,60815.0,0.28]
[1726593039904,0.3608,60819.0,60814.0,0.082197]
[1726593040105,0.3608,60819.0,60811.0,0.28246657]
[1726593040295,0.3608,60819.0,60811.0,0.00246657]
[1726593040501,0.3608,60819.0,60811.0,0.09313803]
[1726593040702,0.3608,60812.0,60811.0,0.08466757]
[1726593041312,0.3608,60812.0,60811.0,0.00246657]
[1726593042109,1.21632,60812.0,60801.0,0.00246625]
[1726593042304,0.3608,60802.0,60801.0,0.00246625]
[1726593043003,0.3608,60802.0,60801.0,0.0932016]
[1726593043204,0.3608,60802.0,60801.0,0.08468025]
[1726593043705,0.3628,60802.0,60801.0,0.00246625]
[1726593045315,0.3628,60802.0,60801.0,1.17808025]
[1726593046010,1.86164,60812.0,60801.0,0.09308865]
[1726593046201,1.8608,60812.0,60803.0,0.04859718]
[1726593046401,1.8608,60812.0,60806.0,0.04859718]
[1726593046608,0.00246691,60816.0,60810.0,0.28]
[1726593047013,1.5,60815.0,60810.0,0.28]
[1726593047309,0.001,60812.0,60810.0,0.28]
[1726593047611,0.001,60812.0,60810.0,0.362202]
[1726593047806,0.00246691,60816.0,60810.0,0.28]
[1726593048010,0.00346691,60816.0,60811.0,0.082201]
[1726593048201,0.00346691,60816.0,60809.0,0.04859718]
[1726593048407,0.001,60812.0,60810.0,0.04859718]
[1726593049214,0.08666091,60816.0,60810.0,0.04859718]
[1726593049514,0.08666091,60816.0,60812.0,0.04859718]
[1726593049907,0.08566091,60816.0,60812.0,0.04859718]
[1726593050215,0.08466091,60816.0,60813.0,0.04859718]
[1726593050512,0.08466091,60816.0,60811.0,0.3608]
[1726593050513,0.08466091,60816.0,60815.0,0.04859718]
[1726593050698,0.08566091,60816.0,60815.0,0.04859718]
[1726593050901,0.08566091,60816.0,60814.0,0.04859718]
[1726593051314,0.08566091,60816.0,60815.0,0.04859718]
[1726593051516,0.08666091,60816.0,60813.0,0.06537726]
[1726593051712,0.362197,60814.0,60813.0,0.06537726]
[1726593052017,0.00446691,60816.0,60811.0,0.04865662]
[1726593052309,0.00446691,60816.0,60806.0,0.09089728]
[1726593052310,0.0822,60812.0,60809.0,0.06537726]
[1726593052505,0.0822,60812.0,60808.0,0.08172157]
[1726593052711,0.0822,60812.0,60811.0,0.06492827]
[1726593053513,1.5822,60812.0,60808.0,0.16392657]
[1726593053704,1.5822,60812.0,60810.0,0.08172157]
[1726593053904,1.5822,60812.0,60808.0,0.082205]
[1726593053905,1.5822,60812.0,60811.0,0.08172157]
[1726593054106,1.5832,60812.0,60811.0,0.08172157]
[1726593054612,1.5832,60812.0,60811.0,0.12531324]
[1726593054808,1.945,60812.0,60811.0,0.12531324]
[1726593055009,1.945,60812.0,60811.0,0.20662719]
[1726593055211,1.945,60812.0,60811.0,0.20662711]
[1726593055410,1.945,60812.0,60811.0,0.13372509]
[1726593055809,0.082204,60809.0,60801.0,0.00246625]
[1726593056015,0.082213,60802.0,60801.0,0.01113479]
[1726593056312,0.082213,60802.0,60801.0,0.00246625]
[1726593056813,1.0934,60802.0,60792.0,0.11453923]
[1726593057016,0.082223,60796.0,60795.0,0.082223]
[1726593057314,0.3608,60797.0,60796.0,0.082221]
[1726593057613,1.94302,60797.0,60796.0,0.15256632]
[1726593058402,1.94402,60797.0,60796.0,0.15256632]
[1726593058710,1.86171594,60797.0,60796.0,0.15256632]
[1726593059617,1.86271594,60797.0,60796.0,0.33235981]
[1726593059817,2.22493594,60797.0,60796.0,0.26690754]
[1726593060116,2.22493594,60797.0,60796.0,0.44671492]
[1726593060306,2.14271594,60797.0,60796.0,0.33237094]
[1726593060703,0.164448,60794.0,60793.0,0.13090198]
[1726593060912,0.00246795,60795.0,60790.0,0.08173195]
[1726593061121,0.16691395,60795.0,60794.0,0.06538606]
[1726593061312,0.16691395,60795.0,60785.0,0.0024677]
[1726593061313,0.164448,60794.0,60793.0,0.06538606]
[1726593061518,0.082228,60791.0,60790.0,0.08173195]
[1726593061717,0.443028,60791.0,60790.0,0.08173195]
[1726593062319,0.082231,60789.0,60788.0,0.08173195]
[1726593062511,0.16447,60786.0,60785.0,0.08173195]
[1726593062714,0.082239,60783.0,60782.0,0.08173195]
[1726593063022,0.082239,60783.0,60781.0,0.00883119]
[1726593063023,0.08224,60782.0,60781.0,0.08173195]
[1726593063217,0.08224,60782.0,60776.0,0.3271]
[1726593063218,0.082247,60777.0,60776.0,0.3358121]
[1726593063412,0.00246826,60781.0,60779.0,0.082243]
[1726593063715,0.00246826,60781.0,60776.0,0.3358121]
[1726593063918,1.582247,60777.0,60776.0,0.3358121]
[1726593064108,1.5,60777.0,60776.0,0.4180601]
[1726593064308,1.501,60777.0,60776.0,0.4180601]
[1726593064910,1.583247,60777.0,60776.0,0.3358121]
[1726593065118,1.944047,60777.0,60776.0,0.3358121]
[1726593065308,1.945047,60777.0,60776.0,0.3358121]
[1726593065719,1.945047,60777.0,60776.0,0.0909601]
[1726593065908,0.445047,60777.0,60776.0,0.0087121]
[1726593066114,0.082251,60774.0,60773.0,0.082251]
[1726593066907,1.582251,60774.0,60773.0,0.082251]
[1726593067717,1.583251,60774.0,60773.0,0.082251]
[1726593068022,1.584251,60774.0,60773.0,0.082251]
[1726593068406,1.584251,60774.0,60772.0,0.0085633]
[1726593068407,0.164504,60773.0,60772.0,0.0085633]
[1726593068612,0.16452,60767.0,60766.0,0.3608]
[1726593068822,0.44452,60767.0,60766.0,0.17986273]
[1726593069319,2.02678,60767.0,60766.0,0.11432976]
[1726593069516,0.164526,60765.0,60764.0,0.09094652]
[1726593069734,0.525326,60765.0,60764.0,0.00876652]
[1726593069923,0.16455,60756.0,60755.0,0.08464894]
[1726593070109,0.16455,60756.0,60735.0,0.3608]
[1726593070110,0.082285,60749.0,60735.0,0.3608]
[1726593070313,0.362302,60736.0,60735.0,0.3608]
[1726593070522,0.3608,60742.0,60733.0,0.082306]
[1726593070523,0.28,60741.0,60733.0,0.082306]
[1726593070710,0.28,60741.0,60730.0,0.3608]
[1726593070711,0.082301,60737.0,60736.0,0.08218]
[1726593070908,0.28,60741.0,60736.0,0.36035326]
[1726593070909,0.362296,60741.0,60736.0,0.36035326]
[1726593071113,0.362296,60741.0,60739.0,0.082298]
[1726593071114,0.082296,60741.0,60739.0,0.082298]
[1726593071319,0.00247102,60745.0,60744.0,0.082292]
[1726593071515,1.50247102,60745.0,60744.0,0.36046427]
[1726593072411,1.78247102,60745.0,60744.0,0.27817227]
[1726593072611,1.86476102,60745.0,60744.0,0.27817227]
[1726593073217,0.082296,60741.0,60740.0,0.00246935]
[1726593073631,1.50347102,60745.0,60740.0,0.00246935]
[1726593073816,1.50347102,60745.0,60741.0,0.082296]
[1726593074212,1.50347102,60745.0,60743.0,0.082292]
[1726593074415,1.50447102,60745.0,60740.0,0.00246935]
[1726593075017,1.50447102,60745.0,60740.0,0.01137798]
[1726593075726,0.082293,60744.0,60740.0,0.01137798]
[1726593075920,0.002,60745.0,60740.0,0.01137798]
[1726593076228,0.082295,60742.0,60740.0,0.01137798]
[1726593077014,1.5,60741.0,60740.0,0.01137798]
[1726593077328,1.582296,60741.0,60740.0,0.01137798]
[1726593078730,1.583296,60741.0,60740.0,0.01137798]
[1726593079321,1.584296,60741.0,60740.0,0.01137798]
[1726593082023,1.502,60741.0,60740.0,0.09367498]
[1726593082421,1.502,60741.0,60740.0,0.1424538]
[1726593082627,1.502,60741.0,60740.0,0.09367498]
[1726593082823,0.002,60741.0,60740.0,0.09367498]
[1726593083035,0.00246978,60749.0,60741.0,0.082296]
[1726593083236,0.00246978,60749.0,60748.0,0.14735084]
[1726593083434,0.00246978,60749.0,60748.0,0.362286]
[1726593083628,0.00246978,60749.0,60748.0,0.443086]
[1726593083823,1.50246978,60749.0,60748.0,0.525372]
[1726593084127,0.00246921,60760.0,60756.0,0.082275]
[1726593084324,0.082245,60779.0,60759.0,0.7216]
[1726593084325,0.723045,60779.0,60759.0,0.7216]
[1726593084625,0.082258,60769.0,60768.0,0.04885564]
[1726593085029,0.082267,60762.0,60761.0,0.06510104]
[1726593085232,0.082267,60762.0,60752.0,0.44555002]
[1726593085233,0.082273,60758.0,60756.0,0.07371861]
[1726593085438,0.082278,60754.0,60752.0,0.36326902]
[1726593085738,0.082278,60754.0,60752.0,0.42847515]
[1726593085935,0.082279,60753.0,60752.0,0.37187081]
[1726593086436,0.081279,60753.0,60752.0,0.37187081]
[1726593086638,1.581279,60753.0,60752.0,0.37187081]
[1726593086835,1.581279,60753.0,60752.0,0.36940179]
[1726593087134,1.942079,60753.0,60748.0,0.06520613]
[1726593087332,1.942079,60753.0,60742.0,0.082294]
[1726593087333,0.081289,60746.0,60744.0,0.06520613]
[1726593087534,0.28,60750.0,60745.0,0.06520613]
[1726593087732,0.082283,60750.0,60747.0,0.3608]
[1726593087932,0.082285,60749.0,60747.0,0.3608]
[1726593088126,0.082285,60749.0,60747.0,0.443086]
[1726593088338,0.082285,60749.0,60748.0,0.06520613]
[1726593088640,0.082286,60748.0,60747.0,0.3608]
[1726593088838,0.081286,60748.0,60747.0,0.3608]
[1726593089133,0.082281,60752.0,60747.0,0.3608]
[1726593089339,0.082281,60752.0,60748.0,0.06533727]
[1726593089542,0.082281,60752.0,60749.0,0.06533727]
[1726593089739,0.082281,60752.0,60750.0,0.06533727]
[1726593089939,0.082281,60752.0,60749.0,0.06533727]
[1726593090241,0.082281,60752.0,60750.0,0.06533727]
[1726593090538,0.082285,60749.0,60748.0,0.06533727]
[1726593090738,0.001,60749.0,60748.0,0.06533727]
[1726593091042,0.04210321,60749.0,60747.0,0.3608]
[1726593091537,0.001,60752.0,60747.0,0.3608]
[1726593091744,0.082284,60750.0,60747.0,0.3608]
[1726593091948,0.082284,60750.0,60748.0,0.082286]
[1726593092336,0.001,60749.0,60748.0,0.082286]
[1726593092940,0.001,60749.0,60748.0,0.164572]
[1726593093148,0.001,60752.0,60748.0,0.164572]
[1726593093149,0.001,60752.0,60751.0,0.164564]
[1726593093339,0.1637,60767.0,60752.0,0.082281]
[1726593093537,0.1637,60767.0,60757.0,0.805348]
[1726593093738,1e-08,60758.0,60757.0,0.805348]
[1726593093950,0.00246884,60771.0,60757.0,1.13456]
[1726593094241,0.00246884,60771.0,60770.0,0.443056]
[1726593094645,0.00246826,60781.0,60770.0,0.3608]
[1726593094839,0.00246826,60781.0,60780.0,0.082243]
[1726593095148,0.00246826,60781.0,60780.0,0.682243]
[1726593095345,1e-08,60781.0,60780.0,1.175803]
[1726593095543,1.5,60790.0,60788.0,0.082232]
[1726593095743,1.5,60790.0,60789.0,0.723031]
[1726593096247,0.00246774,60794.0,60790.0,0.082229]
[1726593096544,0.00246774,60794.0,60793.0,0.362225]
[1726593096741,1.50246774,60794.0,60793.0,0.362225]
[1726593097145,0.00246774,60794.0,60793.0,0.362225]
[1726593097944,0.00246774,60794.0,60793.0,0.082225]
[1726593098347,0.00246774,60794.0,60793.0,0.10510371]
[1726593099045,1.50246774,60794.0,60793.0,0.11910371]
[1726593099246,1.50246774,60794.0,60793.0,0.03687871]
[1726593099638,1.50246774,60794.0,60793.0,0.02287871]
[1726593099848,1.50246774,60794.0,60793.0,0.03687871]
[1726593100349,1.58469174,60794.0,60793.0,0.028]
[1726593100935,1.58469174,60794.0,60793.0,0.014]
[1726593101138,2.67817174,60794.0,60793.0,0.028]
[1726593101850,2.67817174,60794.0,60789.0,0.36526739]
[1726593101851,0.082229,60790.0,60789.0,0.36326739]
[1726593102043,0.362229,60790.0,60789.0,0.36326739]
[1726593102242,0.082229,60790.0,60789.0,0.36326739]
[1726593102438,0.082229,60790.0,60789.0,0.3608]
[1726593103345,0.082229,60790.0,60789.0,0.3888]
[1726593104342,0.082229,60790.0,60789.0,0.3748]
[1726593104542,0.082229,60790.0,60789.0,0.3888]
[1726593107756,0.082229,60790.0,60789.0,0.471031]
[1726593108053,0.082229,60790.0,60789.0,0.3888]
[1726593108851,1.51330774,60794.0,60789.0,0.3888]
[1726593109046,0.09469274,60794.0,60793.0,0.082225]
[1726593109353,0.082229,60790.0,60789.0,0.47103]
[1726593109957,1.582229,60790.0,60789.0,0.45703]
[1726593110252,1.582229,60790.0,60789.0,0.45803]
[1726593110441,1.5,60790.0,60789.0,0.45803]
[1726593110645,1.582229,60790.0,60789.0,0.3758]
[1726593110958,1.583229,60790.0,60789.0,0.3758]
[1726593111751,0.165458,60790.0,60789.0,0.3618]
[1726593112052,0.165458,60790.0,60789.0,0.001]
[1726593112262,0.165458,60790.0,60776.0,0.082248]
[1726593112263,0.082247,60778.0,60776.0,0.082248]
[1726593112448,0.070251,60776.0,60775.0,0.082249]
[1726593112755,1.5,60776.0,60771.0,0.3608]
[1726593112956,0.082256,60771.0,60768.0,0.082258]
[1726593113145,0.082256,60771.0,60769.0,0.082256]
[1726593113452,0.11254149,60770.0,60765.0,0.33119355]
[1726593113657,0.06752567,60769.0,60765.0,0.33119355]
[1726593113854,0.06752567,60768.0,60767.0,0.08226]
[1726593114053,0.05352567,60768.0,60767.0,0.08226]
[1726593114250,0.05352567,60768.0,60765.0,0.34006181]
[1726593114251,0.13578467,60768.0,60765.0,0.34006181]
[1726593114554,0.081259,60768.0,60765.0,0.34006181]
[1726593114755,0.001,60771.0,60766.0,0.082262]
[1726593114949,0.001,60771.0,60765.0,0.62006181]
[1726593115153,0.001,60771.0,60770.0,0.082256]
[1726593116148,0.06852542,60771.0,60770.0,1.816736]
[1726593116458,0.15078042,60771.0,60767.0,0.08226]
[1726593116657,0.14978342,60770.0,60767.0,0.08226]
[1726593116953,0.001,60768.0,60765.0,0.36966826]
[1726593117154,0.06752542,60767.0,60765.0,0.45193026]
[1726593117354,0.06752542,60766.0,60765.0,0.45193026]
[1726593117559,0.06752542,60766.0,60765.0,0.36966826]
[1726593117560,0.14978742,60766.0,60765.0,0.36966826]
[1726593117959,0.14978742,60766.0,60765.0,0.33270144]
[1726593118456,0.15078742,60766.0,60765.0,0.33270144]
[1726593119251,0.23304942,60766.0,60765.0,0.34125863]
[1726593119454,0.23404942,60766.0,60765.0,0.00855719]
[1726593119660,0.082267,60762.0,60761.0,0.00246861]
[1726593119863,0.23205942,60762.0,60761.0,0.00246861]
[1726593120060,0.23205942,60762.0,60761.0,0.01120714]
[1726593120266,0.082267,60762.0,60761.0,0.00246861]
[1726593120460,1.58522201,60766.0,60761.0,0.64326861]
[1726593120649,0.082267,60762.0,60761.0,0.01115804]
[1726593120855,0.164534,60762.0,60761.0,0.01115804]
[1726593121155,0.165534,60762.0,60761.0,0.01115804]
[1726593121351,0.166534,60762.0,60761.0,0.01115804]
[1726593121750,0.082277,60755.0,60754.0,0.3608]
[1726593122277,0.00246902,60759.0,60758.0,0.082273]
[1726593123856,0.00246902,60759.0,60754.0,0.8144694]
[1726593124057,0.00346902,60759.0,60756.0,0.082275]
[1726593124461,0.08574102,60759.0,60756.0,0.082275]
[1726593125161,0.00346902,60759.0,60754.0,0.7321914]
[1726593125366,0.00346902,60759.0,60758.0,0.082273]
[1726593125662,0.00446902,60759.0,60758.0,0.082273]
[1726593125865,0.08674002,60759.0,60754.0,0.7321914]
[1726593126167,0.08674002,60759.0,60754.0,0.7303514]
[1726593126468,0.082277,60755.0,60754.0,0.3695514]
[1726593126671,0.164554,60755.0,60754.0,0.0087514]
[1726593126853,0.28,60756.0,60753.0,0.00246901]
[1726593126854,0.082278,60754.0,60753.0,0.00246901]
[1726593127165,0.164556,60754.0,60753.0,0.00246901]
[1726593127371,1.746834,60754.0,60753.0,0.00246901]
[1726593127672,1.746834,60754.0,60753.0,0.01133996]
[1726593127964,1.746834,60754.0,60753.0,0.00246901]
[1726593128355,1.664556,60754.0,60753.0,0.00246901]
[1726593128554,1.664556,60754.0,60753.0,0.08474801]
[1726593128555,1.582278,60754.0,60753.0,0.08474801]
[1726593128762,1.582278,60754.0,60753.0,0.09371837]
[1726593129157,0.001,60755.0,60754.0,0.082278]
[1726593129365,0.001,60755.0,60754.0,1.316278]
[1726593129668,1.50346902,60759.0,60758.0,0.082273]
[1726593129867,1.50346902,60759.0,60758.0,0.443073]
[1726593130063,1.50346902,60759.0,60758.0,0.936833]
[1726593130266,1.50346902,60759.0,60758.0,1.216833]
[1726593130569,1.50346902,60759.0,60758.0,0.85456]
[1726593130759,1.58574002,60759.0,60758.0,0.3608]
[1726593130959,1.50246902,60759.0,60758.0,0.443073]
[1726593131159,1.50346902,60759.0,60758.0,0.443073]
[1726593131357,1.50346902,60759.0,60753.0,0.00897036]
[1726593131563,1.50346902,60759.0,60751.0,0.3608]
[1726593131871,1.50446902,60759.0,60756.0,0.3608]
[1726593132055,1.50446902,60759.0,60758.0,0.082273]
[1726593132659,1.50346902,60759.0,60758.0,0.082273]
[1726593132860,1.50446902,60759.0,60756.0,0.3608]
[1726593133059,0.082274,60757.0,60756.0,0.3608]
[1726593133267,1.58758102,60759.0,60756.0,0.3608]
[1726593133468,1.58674102,60759.0,60756.0,0.3608]
[1726593133768,0.082274,60757.0,60756.0,0.3608]
[1726593134068,1.50530902,60759.0,60756.0,0.3608]
[1726593134269,1.50346902,60759.0,60756.0,0.3608]
[1726593134467,1.50446902,60759.0,60758.0,0.082273]
[1726593135072,1.50346902,60759.0,60758.0,0.082273]
[1726593135768,1.50446902,60759.0,60758.0,0.082273]
[1726593137179,1.50446902,60759.0,60758.0,0.09132977]
[1726593138976,1.50446902,60759.0,60758.0,0.58508977]
[1726593139368,1.50446902,60759.0,60758.0,0.09132977]
[1726593139978,1.58674002,60759.0,60758.0,0.09132977]
[1726593140273,1.50446902,60759.0,60758.0,0.09132977]
[1726593140972,1.50446902,60759.0,60758.0,0.58508977]
[1726593141982,1.50446902,60759.0,60758.0,0.09132977]
[1726593142272,0.00246861,60770.0,60761.0,0.082269]
[1726593142479,0.00246861,60770.0,60769.0,0.082258]
[1726593143273,1.50246861,60770.0,60769.0,0.082258]
[1726593143474,1.50346861,60770.0,60769.0,0.082258]
[1726593143876,1.50346861,60770.0,60769.0,1.455938]
[1726593144580,1.50446861,60770.0,60769.0,1.456938]
[1726593144982,1.50446861,60770.0,60769.0,0.083258]
[1726593145176,0.002,60770.0,60769.0,1.26803332]
[1726593145385,0.08224,60782.0,60778.0,0.082245]
[1726593145574,0.153,60786.0,60779.0,0.28]
[1726593145773,0.153,60786.0,60778.0,0.3608]
[1726593145975,0.082239,60784.0,60780.0,0.082243]
[1726593146179,0.153,60786.0,60778.0,0.3608]
[1726593146180,1.5,60783.0,60778.0,0.3608]
[1726593146480,1.5,60783.0,60782.0,0.08224]
[1726593146880,1.5,60783.0,60780.0,0.082242]
[1726593147375,1.501,60783.0,60782.0,0.08224]
[1726593147783,1.501,60783.0,60778.0,0.36953349]
[1726593148079,1.501,60783.0,60782.0,0.80528]
[1726593148280,1.501,60783.0,60782.0,0.72304]
[1726593148671,1.501,60783.0,60782.0,0.80528]
[1726593148875,0.001,60783.0,60782.0,1.90688559]
[1726593149087,0.00246799,60788.0,60787.0,0.082233]